[Event "*** Titled Tuesday Blitz"]
[Site "Chess.com"]
[Date "2021.02.09"]
[Round "6"]
[White "ural58"]
[Black "Szparu"]
[Result "1-0"]
[WhiteElo "2493"]
[BlackElo "2666"]
[TimeControl "180+1"]
[EndTime "11:06:49 PST"]
[Termination "ural58 won by resignation"]

1. e4 {[%clk 0:03:00.9]} 1... c5 {[%clk 0:02:58.3]} 2. b3 {[%clk 0:03:00.6]}
2... Nc6 {[%clk 0:02:44]} 3. Bb2 {[%clk 0:03:00.5]} 3... d6 {[%clk 0:02:34.1]}
4. Bb5 {[%clk 0:03:00.5]} 4... Bd7 {[%clk 0:02:33.3]} 5. Ne2 {[%clk 0:02:50.4]}
5... a6 {[%clk 0:02:14.5]} 6. Bxc6 {[%clk 0:02:50.2]} 6... Bxc6 {[%clk
0:02:14.6]} 7. d3 {[%clk 0:02:49.4]} 7... e6 {[%clk 0:02:12.8]} 8. f4 {[%clk
0:02:48.5]} 8... f5 {[%clk 0:02:05.9]} 9. Ng3 {[%clk 0:02:45.2]} 9... Nf6 {[%clk
0:01:46.7]} 10. Qe2 {[%clk 0:02:42.8]} 10... fxe4 {[%clk 0:01:36.9]} 11. dxe4
{[%clk 0:02:42.4]} 11... Qa5+ {[%clk 0:00:56.3]} 12. Nc3 {[%clk 0:02:36.9]}
12... O-O-O {[%clk 0:00:55.5]} 13. O-O-O {[%clk 0:02:36.2]} 13... Be7 {[%clk
0:00:39.9]} 14. e5 {[%clk 0:02:24.8]} 14... dxe5 {[%clk 0:00:31.6]} 15. Qxe5
{[%clk 0:02:24.9]} 15... Bd7 {[%clk 0:00:28.7]} 16. Kb1 {[%clk 0:02:12.9]} 16...
h5 {[%clk 0:00:21.3]} 17. Rhe1 {[%clk 0:02:09.8]} 17... h4 {[%clk 0:00:21]} 18.
Nge4 {[%clk 0:02:10.1]} 18... Rh5 {[%clk 0:00:20.7]} 19. Ng5 {[%clk 0:02:03.6]}
19... Qc7 {[%clk 0:00:19.1]} 20. Qe3 {[%clk 0:01:29.5]} 20... Ng4 {[%clk
0:00:19.2]} 21. Qf3 {[%clk 0:01:29.8]} 21... e5 {[%clk 0:00:16.5]} 22. Nf7
{[%clk 0:01:26.2]} 22... Rf8 {[%clk 0:00:15.4]} 23. Nd5 {[%clk 0:01:20.9]} 23...
Bc6 {[%clk 0:00:10.8]} 24. Qxg4+ {[%clk 0:01:14.4]} 1-0

[Event "*** Titled Tuesday Blitz"]
[Site "Chess.com"]
[Date "2021.02.09"]
[Round "6"]
[White "KarateBaby"]
[Black "hypert"]
[Result "0-1"]
[WhiteElo "2401"]
[BlackElo "2518"]
[TimeControl "180+1"]
[EndTime "11:06:51 PST"]
[Termination "hypert won by resignation"]

1. b3 {[%clk 0:03:00.9]} 1... d5 {[%clk 0:03:00.2]} 2. Bb2 {[%clk 0:03:00]} 2...
Bf5 {[%clk 0:03:00.6]} 3. e3 {[%clk 0:02:54.4]} 3... e6 {[%clk 0:03:00.9]} 4. h3
{[%clk 0:02:52.5]} 4... h6 {[%clk 0:03:00.8]} 5. Nc3 {[%clk 0:02:50.9]} 5... Nf6
{[%clk 0:02:59.3]} 6. Nf3 {[%clk 0:02:50.7]} 6... Be7 {[%clk 0:02:58.3]} 7. d4
{[%clk 0:02:50.8]} 7... Bh7 {[%clk 0:02:54.9]} 8. Bd3 {[%clk 0:02:50.8]} 8...
Bxd3 {[%clk 0:02:50.2]} 9. cxd3 {[%clk 0:02:51.7]} 9... c6 {[%clk 0:02:49.9]}
10. O-O {[%clk 0:02:40.6]} 10... O-O {[%clk 0:02:50.3]} 11. Re1 {[%clk
0:02:33.4]} 11... Nbd7 {[%clk 0:02:50.6]} 12. e4 {[%clk 0:02:25.4]} 12... b5
{[%clk 0:02:49.5]} 13. a3 {[%clk 0:02:07.2]} 13... Qb6 {[%clk 0:02:47.8]} 14.
Qe2 {[%clk 0:02:02]} 14... a5 {[%clk 0:02:42.7]} 15. a4 {[%clk 0:01:59.1]} 15...
Bb4 {[%clk 0:02:21.1]} 16. Rac1 {[%clk 0:01:51.2]} 16... Rac8 {[%clk 0:02:10.5]}
17. Red1 {[%clk 0:01:45.6]} 17... Rfe8 {[%clk 0:02:01.6]} 18. Nb1 {[%clk
0:01:41.4]} 18... Qa6 {[%clk 0:01:40]} 19. Nbd2 {[%clk 0:01:32.6]} 19... Nb6
{[%clk 0:01:37.6]} 20. axb5 {[%clk 0:01:29.4]} 20... cxb5 {[%clk 0:01:36.2]} 21.
Ne5 {[%clk 0:01:24.9]} 21... a4 {[%clk 0:01:28.5]} 22. Nc6 {[%clk 0:01:21.2]}
22... Bxd2 {[%clk 0:01:20.5]} 23. Qxd2 {[%clk 0:01:17.7]} 23... axb3 {[%clk
0:01:11.1]} 24. Qb4 {[%clk 0:01:14.9]} 24... Na4 {[%clk 0:01:10.2]} 25. Ne7+
{[%clk 0:00:36.5]} 25... Rxe7 {[%clk 0:01:10]} 26. Qxe7 {[%clk 0:00:35.9]} 26...
Nxb2 {[%clk 0:01:09.9]} 27. Rxc8+ {[%clk 0:00:34.5]} 27... Qxc8 {[%clk
0:01:10.7]} 28. Re1 {[%clk 0:00:29.1]} 28... Nxd3 {[%clk 0:01:09.3]} 29. Re3
{[%clk 0:00:29.2]} 29... b2 {[%clk 0:01:08.6]} 30. Qb4 {[%clk 0:00:28.9]} 0-1

[Event "*** Titled Tuesday Blitz"]
[Site "Chess.com"]
[Date "2021.02.09"]
[Round "6"]
[White "Noam_Vitenberg"]
[Black "Grandmaster1369"]
[Result "0-1"]
[WhiteElo "2396"]
[BlackElo "2205"]
[TimeControl "180+1"]
[EndTime "11:06:51 PST"]
[Termination "Grandmaster1369 won by checkmate"]

1. Nc3 {[%clk 0:03:00.2]} 1... Nf6 {[%clk 0:02:56.9]} 2. e4 {[%clk 0:02:51.8]}
2... d5 {[%clk 0:02:57.8]} 3. e5 {[%clk 0:02:48.4]} 3... d4 {[%clk 0:02:57.9]}
4. exf6 {[%clk 0:02:45.8]} 4... dxc3 {[%clk 0:02:57]} 5. fxg7 {[%clk 0:02:45.3]}
5... cxd2+ {[%clk 0:02:56.3]} 6. Bxd2 {[%clk 0:02:45.4]} 6... Bxg7 {[%clk
0:02:54.7]} 7. c3 {[%clk 0:02:45.7]} 7... Be6 {[%clk 0:02:53]} 8. Nf3 {[%clk
0:02:45.5]} 8... Nc6 {[%clk 0:02:52.8]} 9. Bb5 {[%clk 0:02:44.5]} 9... Qd6
{[%clk 0:02:50]} 10. Be3 {[%clk 0:02:43.3]} 10... Bf6 {[%clk 0:02:42.5]} 11. O-O
{[%clk 0:02:39.4]} 11... Rg8 {[%clk 0:02:41.3]} 12. Qxd6 {[%clk 0:02:38.9]}
12... cxd6 {[%clk 0:02:40.8]} 13. Rfe1 {[%clk 0:02:32.6]} 13... Bd5 {[%clk
0:02:36.1]} 14. Be2 {[%clk 0:02:30.4]} 14... Ne5 {[%clk 0:02:34]} 15. Nxe5
{[%clk 0:02:01.4]} 15... Rxg2+ {[%clk 0:02:20.7]} 16. Kf1 {[%clk 0:02:01.1]}
16... Bxe5 {[%clk 0:02:16.8]} 17. Bb5+ {[%clk 0:02:00.6]} 17... Kd8 {[%clk
0:02:10.9]} 18. c4 {[%clk 0:02:00.7]} 18... Bf3 {[%clk 0:02:06.6]} 19. Reb1
{[%clk 0:01:45.6]} 19... Rxh2 {[%clk 0:02:03]} 20. Ke1 {[%clk 0:01:45.6]} 20...
Bxb2 {[%clk 0:01:44]} 21. Rxb2 {[%clk 0:01:42.7]} 21... Rh1+ {[%clk 0:01:42.9]}
22. Kd2 {[%clk 0:01:43.4]} 22... Rxa1 {[%clk 0:01:41.1]} 23. Bd4 {[%clk
0:01:44.3]} 23... Bh5 {[%clk 0:01:25.7]} 24. Ba4 {[%clk 0:01:37.9]} 24... b6
{[%clk 0:01:08.8]} 25. Bc6 {[%clk 0:01:36.6]} 25... Rc8 {[%clk 0:01:07.5]} 26.
Bd5 {[%clk 0:01:26.1]} 26... e6 {[%clk 0:00:56.7]} 27. Bf6+ {[%clk 0:01:24.6]}
27... Kd7 {[%clk 0:00:54.6]} 28. Bb7 {[%clk 0:01:15.6]} 28... Rxc4 {[%clk
0:00:52.5]} 29. Rb5 {[%clk 0:01:15.4]} 29... Rd1+ {[%clk 0:00:47.9]} 30. Ke3
{[%clk 0:01:11.7]} 30... d5 {[%clk 0:00:43.9]} 31. Rb2 {[%clk 0:01:03.4]} 31...
Re4# {[%clk 0:00:41.1]} 0-1

[Event "*** Titled Tuesday Blitz"]
[Site "Chess.com"]
[Date "2021.02.09"]
[Round "6"]
[White "Rodalquilar"]
[Black "rpragchess"]
[Result "0-1"]
[WhiteElo "2677"]
[BlackElo "2864"]
[TimeControl "180+1"]
[EndTime "11:06:56 PST"]
[Termination "rpragchess won by resignation"]

1. d4 {[%clk 0:03:00.9]} 1... d6 {[%clk 0:02:59.7]} 2. e4 {[%clk 0:02:57.3]}
2... Nf6 {[%clk 0:02:55.9]} 3. Nc3 {[%clk 0:02:57.7]} 3... g6 {[%clk 0:02:56.5]}
4. Nf3 {[%clk 0:02:57.6]} 4... Bg7 {[%clk 0:02:57.1]} 5. Be2 {[%clk 0:02:58.1]}
5... O-O {[%clk 0:02:57.7]} 6. O-O {[%clk 0:02:58.6]} 6... Nc6 {[%clk
0:02:58.4]} 7. h3 {[%clk 0:02:51.3]} 7... e5 {[%clk 0:02:57.8]} 8. dxe5 {[%clk
0:02:47.2]} 8... dxe5 {[%clk 0:02:58]} 9. Be3 {[%clk 0:02:47.4]} 9... Be6 {[%clk
0:02:45.7]} 10. Ng5 {[%clk 0:02:45.8]} 10... Nd4 {[%clk 0:02:01.5]} 11. Nxe6
{[%clk 0:02:45]} 11... fxe6 {[%clk 0:02:02.4]} 12. Bc4 {[%clk 0:02:43.8]} 12...
Kh8 {[%clk 0:01:57]} 13. f3 {[%clk 0:02:29.5]} 13... Nh5 {[%clk 0:01:50.9]} 14.
Ne2 {[%clk 0:02:29.2]} 14... Qf6 {[%clk 0:01:35.2]} 15. c3 {[%clk 0:02:27.1]}
15... Nxe2+ {[%clk 0:01:35]} 16. Qxe2 {[%clk 0:02:26.5]} 16... Ng3 {[%clk
0:01:34.4]} 17. Qf2 {[%clk 0:02:21.9]} 17... Nxf1 {[%clk 0:01:34.4]} 18. Rxf1
{[%clk 0:02:22.8]} 18... g5 {[%clk 0:01:28.4]} 19. Qg3 {[%clk 0:02:19.2]} 19...
Bh6 {[%clk 0:01:26.6]} 20. Qg4 {[%clk 0:02:17.4]} 20... Rae8 {[%clk 0:01:19.8]}
21. Qh5 {[%clk 0:02:17.6]} 21... Rg8 {[%clk 0:01:14.1]} 22. a4 {[%clk
0:02:12.4]} 22... a6 {[%clk 0:01:11.5]} 23. a5 {[%clk 0:02:11.6]} 23... Qg6
{[%clk 0:01:09.3]} 24. Qxg6 {[%clk 0:02:03.3]} 24... Rxg6 {[%clk 0:01:10.2]} 25.
Rd1 {[%clk 0:02:03.5]} 25... Bf8 {[%clk 0:01:01]} 26. Rd7 {[%clk 0:01:54.2]}
26... Bd6 {[%clk 0:01:00.8]} 27. b4 {[%clk 0:01:49.1]} 27... h6 {[%clk 0:00:49]}
28. Kf2 {[%clk 0:01:02]} 28... Rg7 {[%clk 0:00:36.9]} 29. Rxg7 {[%clk
0:01:01.3]} 29... Kxg7 {[%clk 0:00:37.8]} 30. Bb3 {[%clk 0:01:01.4]} 30... Kf6
{[%clk 0:00:37.2]} 31. c4 {[%clk 0:01:01.1]} 31... Bxb4 {[%clk 0:00:36.9]} 0-1

[Event "*** Titled Tuesday Blitz"]
[Site "Chess.com"]
[Date "2021.02.09"]
[Round "6"]
[White "sbouchet"]
[Black "anantone"]
[Result "0-1"]
[WhiteElo "2338"]
[BlackElo "2565"]
[TimeControl "180+1"]
[EndTime "11:06:56 PST"]
[Termination "anantone won by resignation"]

1. e4 {[%clk 0:03:00.9]} 1... c5 {[%clk 0:02:56.4]} 2. c3 {[%clk 0:03:00.2]}
2... d5 {[%clk 0:02:54.3]} 3. exd5 {[%clk 0:02:59.8]} 3... Qxd5 {[%clk
0:02:55.2]} 4. d4 {[%clk 0:03:00.2]} 4... Nf6 {[%clk 0:02:55.6]} 5. Nf3 {[%clk
0:02:59.3]} 5... Nc6 {[%clk 0:02:55.8]} 6. Be2 {[%clk 0:02:59.7]} 6... Bf5
{[%clk 0:02:54.9]} 7. Na3 {[%clk 0:02:53.9]} 7... cxd4 {[%clk 0:02:50.4]} 8. Nb5
{[%clk 0:02:53]} 8... O-O-O {[%clk 0:02:48.4]} 9. Nbxd4 {[%clk 0:02:33.4]} 9...
Nxd4 {[%clk 0:02:46.4]} 10. Nxd4 {[%clk 0:02:02.3]} 10... e5 {[%clk 0:02:25.7]}
11. Bf3 {[%clk 0:01:33.1]} 11... Be4 {[%clk 0:02:21.7]} 12. Nb3 {[%clk
0:01:15.9]} 12... Qxd1+ {[%clk 0:01:51.9]} 13. Bxd1 {[%clk 0:01:15.3]} 13...
Bxg2 {[%clk 0:01:52.5]} 14. Rg1 {[%clk 0:01:15.8]} 14... Bc6 {[%clk 0:01:50.7]}
15. Be3 {[%clk 0:01:07.4]} 15... Nd5 {[%clk 0:01:47]} 16. Bd2 {[%clk 0:00:36.6]}
16... g6 {[%clk 0:01:27.8]} 17. Na5 {[%clk 0:00:36.7]} 17... f5 {[%clk
0:01:16.3]} 18. Nxc6 {[%clk 0:00:35.6]} 18... bxc6 {[%clk 0:01:11.6]} 19. c4
{[%clk 0:00:36.1]} 19... Nb4 {[%clk 0:01:06.9]} 20. Ba4 {[%clk 0:00:28.2]} 20...
Kb7 {[%clk 0:01:01]} 21. O-O-O {[%clk 0:00:18.2]} 21... Nd3+ {[%clk 0:00:59]}
22. Kb1 {[%clk 0:00:18.7]} 22... Nxf2 {[%clk 0:00:57.5]} 0-1

[Event "*** Titled Tuesday Blitz"]
[Site "Chess.com"]
[Date "2021.02.09"]
[Round "6"]
[White "Alexchess1984"]
[Black "AryanTari"]
[Result "1-0"]
[WhiteElo "2719"]
[BlackElo "2887"]
[TimeControl "180+1"]
[EndTime "11:07:05 PST"]
[Termination "Alexchess1984 won on time"]

1. e4 {[%clk 0:03:00.9]} 1... c6 {[%clk 0:02:59.6]} 2. d4 {[%clk 0:03:00.5]}
2... d5 {[%clk 0:03:00.5]} 3. exd5 {[%clk 0:03:00.7]} 3... cxd5 {[%clk
0:03:01.2]} 4. c4 {[%clk 0:03:01.4]} 4... Nf6 {[%clk 0:02:59.6]} 5. Nc3 {[%clk
0:03:01.2]} 5... g6 {[%clk 0:03:00.2]} 6. cxd5 {[%clk 0:03:00.7]} 6... Nxd5
{[%clk 0:03:00.3]} 7. Bc4 {[%clk 0:03:00.5]} 7... Nb6 {[%clk 0:02:59.3]} 8. Bb3
{[%clk 0:03:00.7]} 8... Bg7 {[%clk 0:02:59.9]} 9. Nf3 {[%clk 0:03:01.1]} 9...
O-O {[%clk 0:03:00.4]} 10. h3 {[%clk 0:03:01.4]} 10... Nc6 {[%clk 0:02:57.9]}
11. d5 {[%clk 0:03:01.7]} 11... Na5 {[%clk 0:02:56.8]} 12. O-O {[%clk
0:03:02.3]} 12... Bd7 {[%clk 0:02:53.1]} 13. Re1 {[%clk 0:03:01.7]} 13... h6
{[%clk 0:02:41.3]} 14. Bf4 {[%clk 0:02:58.2]} 14... Nac4 {[%clk 0:02:40.6]} 15.
Qe2 {[%clk 0:02:57.7]} 15... Rc8 {[%clk 0:02:39.7]} 16. Ne5 {[%clk 0:02:55.2]}
16... Nd6 {[%clk 0:01:55.9]} 17. Nxd7 {[%clk 0:02:48.3]} 17... Nxd7 {[%clk
0:01:49.2]} 18. Qxe7 {[%clk 0:02:47.7]} 18... Nc4 {[%clk 0:01:49.4]} 19. Bxc4
{[%clk 0:02:25.5]} 19... Rxc4 {[%clk 0:01:48.9]} 20. Bg3 {[%clk 0:02:24.2]}
20... Nc5 {[%clk 0:01:33.1]} 21. Rad1 {[%clk 0:02:19.4]} 21... Qb6 {[%clk
0:01:22.9]} 22. Qe2 {[%clk 0:02:07.2]} 22... Rb4 {[%clk 0:01:19.1]} 23. Rd2
{[%clk 0:01:50.3]} 23... Rd8 {[%clk 0:01:12.9]} 24. d6 {[%clk 0:01:48.1]} 24...
Bxc3 {[%clk 0:00:42]} 25. bxc3 {[%clk 0:01:49]} 25... Re4 {[%clk 0:00:42.5]} 26.
Qd1 {[%clk 0:01:44.1]} 26... Qc6 {[%clk 0:00:42.8]} 27. Rde2 {[%clk 0:01:39.2]}
27... Rxe2 {[%clk 0:00:36.2]} 28. Qxe2 {[%clk 0:01:38.7]} 28... Ne6 {[%clk
0:00:36.5]} 29. Qe5 {[%clk 0:01:32.2]} 29... Qc5 {[%clk 0:00:07.5]} 30. Qf6
{[%clk 0:01:29.6]} 30... Rxd6 {[%clk 0:00:01.9]} 31. Be5 {[%clk 0:01:25.2]} 1-0

[Event "*** Titled Tuesday Blitz"]
[Site "Chess.com"]
[Date "2021.02.09"]
[Round "6"]
[White "Rozum_Ivan"]
[Black "andriipalchuk"]
[Result "1-0"]
[WhiteElo "2742"]
[BlackElo "2573"]
[TimeControl "180+1"]
[EndTime "11:07:05 PST"]
[Termination "Rozum_Ivan won by resignation"]

1. d3 {[%clk 0:03:00.9]} 1... d5 {[%clk 0:02:51]} 2. Bf4 {[%clk 0:03:00.4]} 2...
Nf6 {[%clk 0:02:48.9]} 3. Nd2 {[%clk 0:02:55.1]} 3... Nc6 {[%clk 0:02:46.1]} 4.
Ngf3 {[%clk 0:02:55]} 4... g6 {[%clk 0:02:45]} 5. e4 {[%clk 0:02:54.5]} 5... Bg7
{[%clk 0:02:44.9]} 6. c3 {[%clk 0:02:48.3]} 6... O-O {[%clk 0:02:42.1]} 7. Qc2
{[%clk 0:02:47.4]} 7... a5 {[%clk 0:02:36.1]} 8. h3 {[%clk 0:02:43.8]} 8... a4
{[%clk 0:02:34.4]} 9. Rd1 {[%clk 0:02:37.4]} 9... Re8 {[%clk 0:02:17.4]} 10. e5
{[%clk 0:02:25.2]} 10... Nd7 {[%clk 0:02:14.1]} 11. d4 {[%clk 0:02:22.9]} 11...
Nb6 {[%clk 0:02:13.2]} 12. Bd3 {[%clk 0:01:58.8]} 12... Be6 {[%clk 0:01:50.2]}
13. h4 {[%clk 0:01:53.8]} 13... Bg4 {[%clk 0:01:13]} 14. Nf1 {[%clk 0:01:44.7]}
14... Qd7 {[%clk 0:01:01.6]} 15. Ne3 {[%clk 0:01:27.1]} 15... Bxf3 {[%clk
0:00:19.9]} 16. gxf3 {[%clk 0:01:28]} 16... f6 {[%clk 0:00:20.8]} 17. Bxg6
{[%clk 0:00:57.1]} 17... hxg6 {[%clk 0:00:21.7]} 18. Qxg6 {[%clk 0:00:57.5]}
18... Kh8 {[%clk 0:00:09.8]} 19. Rg1 {[%clk 0:00:49.5]} 1-0

[Event "*** Titled Tuesday Blitz"]
[Site "Chess.com"]
[Date "2021.02.09"]
[Round "6"]
[White "mr65"]
[Black "GMJustin"]
[Result "0-1"]
[WhiteElo "2103"]
[BlackElo "2279"]
[TimeControl "180+1"]
[EndTime "11:07:07 PST"]
[Termination "GMJustin won by resignation"]

1. e4 {[%clk 0:03:00.9]} 1... e5 {[%clk 0:02:45.4]} 2. Nf3 {[%clk 0:02:59.5]}
2... Nc6 {[%clk 0:02:43.9]} 3. Bb5 {[%clk 0:02:59.3]} 3... a6 {[%clk 0:02:42.5]}
4. Ba4 {[%clk 0:02:58.9]} 4... Nf6 {[%clk 0:02:42.1]} 5. O-O {[%clk 0:02:58.7]}
5... Be7 {[%clk 0:02:42.2]} 6. Re1 {[%clk 0:02:57.6]} 6... b5 {[%clk 0:02:42.1]}
7. Bb3 {[%clk 0:02:57.6]} 7... O-O {[%clk 0:02:42.1]} 8. d4 {[%clk 0:02:55.8]}
8... Nxd4 {[%clk 0:02:30.5]} 9. Nxd4 {[%clk 0:02:52.1]} 9... exd4 {[%clk
0:02:30.3]} 10. e5 {[%clk 0:02:52]} 10... Ne8 {[%clk 0:02:29.2]} 11. c3 {[%clk
0:02:49.2]} 11... c5 {[%clk 0:02:13.9]} 12. cxd4 {[%clk 0:02:46.6]} 12... c4
{[%clk 0:02:12.9]} 13. Bc2 {[%clk 0:02:43.8]} 13... d5 {[%clk 0:02:05.9]} 14.
Nc3 {[%clk 0:02:26.2]} 14... Nc7 {[%clk 0:01:39.6]} 15. Qh5 {[%clk 0:01:58]}
15... g6 {[%clk 0:01:37.1]} 16. Qh6 {[%clk 0:01:56.2]} 16... b4 {[%clk
0:00:37.5]} 17. Ne2 {[%clk 0:01:55.5]} 17... Ne6 {[%clk 0:00:30.4]} 18. Ng3
{[%clk 0:01:39.7]} 18... f5 {[%clk 0:00:20.5]} 19. exf6 {[%clk 0:01:33.6]} 19...
Bxf6 {[%clk 0:00:20.1]} 20. Be3 {[%clk 0:01:14.6]} 20... Bg7 {[%clk 0:00:17.9]}
0-1

[Event "*** Titled Tuesday Blitz"]
[Site "Chess.com"]
[Date "2021.02.09"]
[Round "6"]
[White "Vanina1989"]
[Black "serhanberat_ozdemir"]
[Result "1-0"]
[WhiteElo "2715"]
[BlackElo "2483"]
[TimeControl "180+1"]
[EndTime "11:07:11 PST"]
[Termination "Vanina1989 won on time"]

1. d4 {[%clk 0:03:00.9]} 1... Nf6 {[%clk 0:03:00]} 2. c4 {[%clk 0:03:00.4]} 2...
g6 {[%clk 0:03:00.6]} 3. Nc3 {[%clk 0:02:59.8]} 3... Bg7 {[%clk 0:03:01.3]} 4.
e4 {[%clk 0:03:00]} 4... d6 {[%clk 0:03:02]} 5. Nf3 {[%clk 0:02:59.5]} 5... O-O
{[%clk 0:03:02.7]} 6. Be2 {[%clk 0:03:00.1]} 6... Bg4 {[%clk 0:03:03.1]} 7. O-O
{[%clk 0:03:00.3]} 7... Nfd7 {[%clk 0:03:02.9]} 8. h3 {[%clk 0:02:57.7]} 8...
Bxf3 {[%clk 0:03:02.8]} 9. Bxf3 {[%clk 0:02:58.2]} 9... c5 {[%clk 0:03:03.4]}
10. d5 {[%clk 0:02:58]} 10... Na6 {[%clk 0:03:02.7]} 11. Be2 {[%clk 0:02:57.7]}
11... Nc7 {[%clk 0:03:02.9]} 12. f4 {[%clk 0:02:57.8]} 12... e6 {[%clk
0:02:43.8]} 13. Bf3 {[%clk 0:02:50.5]} 13... exd5 {[%clk 0:02:28.2]} 14. cxd5
{[%clk 0:02:50.2]} 14... a6 {[%clk 0:02:05.7]} 15. Be3 {[%clk 0:02:32.2]} 15...
Re8 {[%clk 0:02:04.1]} 16. Qc2 {[%clk 0:02:26.8]} 16... Rb8 {[%clk 0:02:02.4]}
17. Bf2 {[%clk 0:02:26.5]} 17... b5 {[%clk 0:02:00.3]} 18. Rae1 {[%clk
0:02:21.2]} 18... c4 {[%clk 0:01:51]} 19. Ne2 {[%clk 0:02:11.7]} 19... Nc5
{[%clk 0:01:31.3]} 20. Bxc5 {[%clk 0:02:10.7]} 20... dxc5 {[%clk 0:01:32.2]} 21.
Rd1 {[%clk 0:02:11]} 21... a5 {[%clk 0:00:54.3]} 22. e5 {[%clk 0:02:08.8]} 22...
Na6 {[%clk 0:00:53.4]} 23. a3 {[%clk 0:02:05.6]} 23... Kh8 {[%clk 0:00:44.6]}
24. d6 {[%clk 0:02:05.6]} 24... f6 {[%clk 0:00:40.6]} 25. Bc6 {[%clk 0:02:03.1]}
25... fxe5 {[%clk 0:00:38.9]} 26. Bxe8 {[%clk 0:02:02.4]} 26... Qxe8 {[%clk
0:00:39.2]} 27. d7 {[%clk 0:02:02.8]} 27... Qe7 {[%clk 0:00:34.3]} 28. f5 {[%clk
0:02:03.2]} 28... e4 {[%clk 0:00:29.2]} 29. fxg6 {[%clk 0:02:03.3]} 29... hxg6
{[%clk 0:00:29.1]} 30. Nf4 {[%clk 0:02:03.1]} 30... Kh7 {[%clk 0:00:26.7]} 31.
Rfe1 {[%clk 0:01:53.6]} 31... Bd4+ {[%clk 0:00:24.2]} 32. Kh1 {[%clk 0:01:53.7]}
32... Qxd7 {[%clk 0:00:20.3]} 33. Qxe4 {[%clk 0:01:53.3]} 33... Qf7 {[%clk
0:00:11.8]} 34. Ne6 {[%clk 0:01:48.4]} 34... Bf6 {[%clk 0:00:09.6]} 35. Rf1
{[%clk 0:01:45.4]} 35... Qe7 {[%clk 0:00:03.8]} 36. Qc6 {[%clk 0:01:38.8]} 36...
Re8 {[%clk 0:00:03.1]} 37. Rd7 {[%clk 0:01:37.7]} 37... Nb8 {[%clk 0:00:01.5]}
38. Rxe7+ {[%clk 0:01:37.7]} 38... Rxe7 {[%clk 0:00:02.4]} 39. Qc8 {[%clk
0:01:37.6]} 1-0

[Event "*** Titled Tuesday Blitz"]
[Site "Chess.com"]
[Date "2021.02.09"]
[Round "6"]
[White "AurumO"]
[Black "politeplayer"]
[Result "0-1"]
[WhiteElo "1894"]
[BlackElo "2182"]
[TimeControl "180+1"]
[EndTime "11:07:14 PST"]
[Termination "politeplayer won on time"]

1. e4 {[%clk 0:03:00.9]} 1... c5 {[%clk 0:02:56.8]} 2. c3 {[%clk 0:03:00.6]}
2... d5 {[%clk 0:02:55.9]} 3. exd5 {[%clk 0:03:01.5]} 3... Qxd5 {[%clk
0:02:55.4]} 4. d4 {[%clk 0:03:00.5]} 4... Nf6 {[%clk 0:02:54.4]} 5. Nf3 {[%clk
0:02:57.5]} 5... e6 {[%clk 0:02:54]} 6. Na3 {[%clk 0:02:34.8]} 6... Bd7 {[%clk
0:02:36]} 7. Nb5 {[%clk 0:02:28.4]} 7... Na6 {[%clk 0:02:18.1]} 8. Be3 {[%clk
0:02:16.9]} 8... c4 {[%clk 0:02:10.7]} 9. a4 {[%clk 0:01:59.2]} 9... Bxb5 {[%clk
0:02:09.7]} 10. axb5 {[%clk 0:01:55.8]} 10... Qxb5 {[%clk 0:02:10.2]} 11. Qa4
{[%clk 0:01:31.9]} 11... Qxa4 {[%clk 0:02:05.4]} 12. Rxa4 {[%clk 0:01:31.5]}
12... Bd6 {[%clk 0:01:55.4]} 13. Bxc4 {[%clk 0:01:28.4]} 13... Nc7 {[%clk
0:01:54.7]} 14. Ra2 {[%clk 0:01:12.8]} 14... b5 {[%clk 0:01:52.9]} 15. Bd3
{[%clk 0:01:09.7]} 15... a5 {[%clk 0:01:53.4]} 16. O-O {[%clk 0:01:09.1]} 16...
Nfd5 {[%clk 0:01:51.8]} 17. Rfa1 {[%clk 0:01:04.5]} 17... a4 {[%clk 0:01:49.4]}
18. h3 {[%clk 0:00:44.6]} 18... Ke7 {[%clk 0:01:48.5]} 19. Be4 {[%clk
0:00:35.4]} 19... a3 {[%clk 0:01:38.1]} 20. Bd3 {[%clk 0:00:09.9]} 20... axb2
{[%clk 0:01:34.8]} 21. Rxa8 {[%clk 0:00:09.6]} 21... Rxa8 {[%clk 0:01:30.1]} 22.
Rxa8 {[%clk 0:00:09]} 22... Nxa8 {[%clk 0:01:26.3]} 23. Bd2 {[%clk 0:00:08.1]}
23... Bf4 {[%clk 0:01:18.8]} 24. Bxf4 {[%clk 0:00:06]} 24... Nxf4 {[%clk
0:01:17.9]} 25. Bb1 {[%clk 0:00:06.9]} 25... Ne2+ {[%clk 0:01:17.5]} 26. Kf1
{[%clk 0:00:04.6]} 26... Nxc3 {[%clk 0:01:18]} 27. Nd2 {[%clk 0:00:03.4]} 27...
Nb6 {[%clk 0:01:14.3]} 28. Ke1 {[%clk 0:00:02.6]} 28... Nc4 {[%clk 0:01:09.9]}
0-1

[Event "*** Titled Tuesday Blitz"]
[Site "Chess.com"]
[Date "2021.02.09"]
[Round "6"]
[White "krasavetc"]
[Black "enriquebutti"]
[Result "0-1"]
[WhiteElo "2329"]
[BlackElo "2182"]
[TimeControl "180+1"]
[EndTime "11:07:19 PST"]
[Termination "enriquebutti won by resignation"]

1. Nf3 {[%clk 0:02:56.1]} 1... c5 {[%clk 0:02:58.6]} 2. d4 {[%clk 0:02:57]} 2...
cxd4 {[%clk 0:02:57.9]} 3. Nxd4 {[%clk 0:02:56.8]} 3... d5 {[%clk 0:02:57.8]} 4.
Nf3 {[%clk 0:02:57.7]} 4... Nc6 {[%clk 0:02:57.3]} 5. e3 {[%clk 0:02:57.8]} 5...
Nf6 {[%clk 0:02:55.5]} 6. c3 {[%clk 0:02:58.7]} 6... e5 {[%clk 0:02:51]} 7. Be2
{[%clk 0:02:58.4]} 7... Bd6 {[%clk 0:02:50.2]} 8. O-O {[%clk 0:02:58.7]} 8... e4
{[%clk 0:02:47.9]} 9. Nd4 {[%clk 0:02:57.6]} 9... h5 {[%clk 0:02:47.6]} 10. h3
{[%clk 0:02:52.9]} 10... Qe7 {[%clk 0:02:40.3]} 11. f4 {[%clk 0:02:46.8]} 11...
exf3 {[%clk 0:02:38.6]} 12. Bxf3 {[%clk 0:02:44.6]} 12... Qe5 {[%clk 0:02:31]}
13. Nd2 {[%clk 0:02:40.4]} 13... Qh2+ {[%clk 0:02:24.7]} 14. Kf2 {[%clk
0:02:39]} 14... Bxh3 {[%clk 0:02:21]} 15. Rh1 {[%clk 0:02:19.5]} 15... Qg3+
{[%clk 0:02:16.2]} 16. Kg1 {[%clk 0:02:13.8]} 16... Bg4 {[%clk 0:02:04.8]} 17.
Nf1 {[%clk 0:02:09.4]} 17... Bxf3 {[%clk 0:01:44.1]} 18. Nxf3 {[%clk 0:01:59.8]}
18... Qg6 {[%clk 0:01:36.4]} 19. c4 {[%clk 0:01:55.3]} 19... O-O {[%clk
0:01:28]} 20. cxd5 {[%clk 0:01:53]} 20... Nb4 {[%clk 0:01:26.1]} 21. Bd2 {[%clk
0:01:34]} 21... Nbxd5 {[%clk 0:01:25.5]} 22. Bc3 {[%clk 0:01:29.6]} 22... Bc5
{[%clk 0:01:16.7]} 23. Bd4 {[%clk 0:01:21.9]} 23... Bxd4 {[%clk 0:01:13.2]} 24.
Qxd4 {[%clk 0:01:22.8]} 24... Rad8 {[%clk 0:01:11.8]} 25. Qh4 {[%clk 0:01:20]}
25... Rfe8 {[%clk 0:01:09.1]} 26. Re1 {[%clk 0:01:17.7]} 26... Qc2 {[%clk
0:01:04.6]} 27. Ng3 {[%clk 0:01:02.7]} 27... Nxe3 {[%clk 0:00:59.8]} 28. Qh3
{[%clk 0:00:59.7]} 28... g6 {[%clk 0:00:52.6]} 29. Ne2 {[%clk 0:00:52.1]} 29...
Rd1 {[%clk 0:00:48.7]} 30. Kh2 {[%clk 0:00:43.9]} 30... Rxe1 {[%clk 0:00:45.1]}
31. Rxe1 {[%clk 0:00:44.8]} 31... Neg4+ {[%clk 0:00:43.4]} 32. Kg3 {[%clk
0:00:40]} 32... Rxe2 {[%clk 0:00:42.5]} 0-1